bitfinex-derivatives/quotes_ETHF0:USTF0_20250911
["timestamp","ask_amount","ask_price","bid_price","bid_amount"]
[1757617566795,3.4358,4422.6,4422.5,0.8398]
[1757617566993,0.228,4422.6,4422.5,0.8398]
[1757617568902,0.9393,4422.6,4422.5,0.5112]
[1757617569099,0.9393,4422.6,4422.5,0.3152]
[1757617569603,0.9393,4422.6,4422.5,0.5112]
[1757617570202,0.9393,4422.6,4422.5,0.6315]
[1757617570700,0.65,4422.6,4422.5,0.8398]
[1757617570901,0.4412,4422.6,4422.5,0.8398]
[1757617571798,0.65,4422.6,4422.5,0.8398]
[1757617572703,0.228,4422.6,4422.5,0.8398]
[1757617573804,3.2078,4422.8,4422.7,0.4043]
[1757617574097,0.228,4422.8,4422.7,0.7195]
[1757617574300,3.2078,4423.8,4423.5,0.3286]
[1757617574503,3.2078,4423.8,4423.7,0.4043]
[1757617574702,3.4358,4423.8,4423.7,0.4043]
[1757617574904,3.4358,4423.8,4423.7,0.7195]
[1757617575106,0.228,4423.8,4423.7,0.7195]
[1757617575300,0.228,4423.8,4423.7,4.7195]
[1757617579404,3.2078,4424.9,4424.6,0.3152]
[1757617579608,3.2078,4425.4,4425.0,0.1203]
[1757617579810,3.6298,4425.4,4425.3,0.7195]
[1757617580002,4.44329216,4425.4,4425.3,0.7195]
[1757617580204,32.572,4425.8,4425.3,0.7195]
[1757617580502,0.2132,4425.6,4425.5,0.8398]
[1757617581101,32.572,4425.8,4425.5,0.8398]
[1757617581297,0.229,4425.7,4425.6,0.7195]
[1757617581703,3.2078,4425.9,4425.7,0.3152]
[1757617581906,0.4422,4425.8,4425.7,0.7195]
[1757617582106,0.229,4425.8,4425.7,0.7195]
[1757617583302,0.4422,4425.8,4425.7,0.7195]
[1757617583698,3.421,4426.4,4426.3,0.7195]
[1757617583897,4.1481,4426.4,4426.3,0.5112]
[1757617584107,4.1481,4426.4,4426.3,0.3152]
[1757617584309,0.422,4426.1,4426.0,0.3163]
[1757617584509,0.422,4426.1,4426.0,0.6315]
[1757617584709,0.65,4426.1,4426.0,0.8398]
[1757617585108,3.2078,4426.9,4426.1,0.3152]
[1757617585309,3.9191,4426.9,4426.8,0.5112]
[1757617585511,4.1471,4426.9,4426.8,0.3152]
[1757617586417,4.1471,4426.9,4426.8,0.5112]
[1757617588524,4.1471,4426.9,4425.5,0.1203]
[1757617588525,0.6805,4426.2,4425.6,0.3169]
[1757617588810,0.3918,4425.7,4425.6,0.7321]
[1757617589008,0.228,4425.7,4425.6,0.7321]
[1757617590409,0.4254,4425.7,4425.6,0.7321]
[1757617590609,0.6198,4425.7,4425.6,0.7321]
[1757617591705,0.9085,4425.7,4425.6,0.5198]
[1757617592507,0.6198,4425.7,4425.6,0.5198]
[1757617592713,0.6198,4425.7,4425.6,0.7321]
[1757617592907,0.228,4425.7,4425.6,0.7321]
[1757617593118,3.4052,4426.1,4426.0,0.8562]
[1757617593420,3.8276,4426.1,4426.0,0.8562]
[1757617595318,4.1163,4426.1,4426.0,0.8562]
[1757617595715,3.8276,4426.1,4426.0,0.8562]
[1757617597224,4.41055134,4426.1,4426.0,0.8562]
[1757617598120,4.1163,4426.1,4426.0,0.8562]
[1757617599216,3.6332,4426.1,4426.0,0.8562]
[1757617599526,3.4358,4426.1,4426.0,0.8562]
[1757617600320,4.01890263,4426.1,4426.0,0.8562]
[1757617601114,4.21630263,4426.1,4426.0,0.8562]
[1757617601618,3.6332,4426.1,4426.0,0.8562]
[1757617602213,0.58392568,4426.1,4426.0,0.8562]
[1757617602418,0.228,4426.1,4426.0,0.8562]
[1757617603215,0.81243084,4426.1,4426.0,0.8562]
[1757617603628,1.00983084,4426.1,4426.0,0.8562]
[1757617604328,1.20423084,4426.1,4426.0,0.8562]
[1757617606323,0.3918,4425.7,4425.6,0.7321]
[1757617606522,0.81243084,4425.7,4425.6,0.7321]
[1757617607422,0.81243084,4425.7,4425.6,3.9399]
[1757617609122,0.58443084,4425.7,4425.6,3.9399]
[1757617609318,1.80183313,4426.1,4425.6,3.623]
[1757617609519,1.80183313,4426.1,4426.0,0.5393]
[1757617609719,0.78183084,4426.1,4426.0,0.5393]
[1757617609919,0.78183084,4426.1,4426.0,0.8562]
[1757617610225,1.26493084,4426.1,4426.0,0.6439]
[1757617610418,1.26493084,4426.1,4426.0,0.3169]
[1757617610916,1.26493084,4426.1,4426.0,0.5198]
[1757617611119,1.26493084,4426.1,4426.0,0.6439]
[1757617612129,0.97623084,4426.1,4426.0,0.8562]
[1757617613522,1.26523084,4426.1,4426.0,0.8562]
[1757617613722,0.97623084,4426.1,4426.0,0.8562]
[1757617614229,0.58443084,4426.1,4426.0,4.8562]
[1757617614523,1.21901289,4426.2,4426.1,0.7321]
[1757617614830,1.80635378,4426.2,4426.1,0.7321]
[1757617615032,0.58734089,4426.2,4426.1,0.7321]
[1757617617729,1.30424089,4426.2,4426.1,0.7321]
[1757617617934,1.64711289,4426.2,4426.1,0.7321]
[1757617618132,1.01544089,4426.2,4426.1,0.7321]
[1757617619030,1.30424089,4426.2,4426.1,0.3169]
[1757617619331,0.4281,4425.9,4425.8,0.5149]
[1757617619528,0.7169,4425.9,4425.8,0.5149]
[1757617619724,1.30424089,4425.9,4425.8,0.5149]
[1757617619920,0.2888,4425.8,4425.5,0.1203]
[1757617620124,0.4281,4425.6,4425.5,0.325]
[1757617620324,1.01544089,4425.6,4425.5,0.325]
[1757617620720,1.01544089,4425.6,4425.5,0.6352]
[1757617621025,1.01544089,4425.6,4425.5,0.8503]
[1757617621227,0.7169,4425.3,4425.2,0.3102]
[1757617621426,0.7169,4425.3,4424.8,0.3102]
[1757617621427,0.7169,4424.9,4424.8,0.3102]
[1757617621627,1.30424089,4424.9,4424.8,0.3102]
[1757617623038,1.30424089,4424.9,4424.8,0.5149]
[1757617624025,1.01544089,4424.9,4424.8,0.5149]
[1757617624226,1.01544089,4424.9,4424.8,0.73]
[1757617624736,3.2078,4425.6,4425.5,0.542]
[1757617624929,3.79266338,4425.6,4425.5,0.8522]
[1757617625330,4.22076338,4425.6,4425.5,0.8522]
[1757617625536,4.50956338,4425.6,4425.5,0.3102]
[1757617625832,4.50956338,4425.6,4425.0,0.1222]
[1757617626029,0.4281,4425.1,4425.0,0.8522]
[1757617626744,0.7169,4424.4,4424.3,0.5149]
[1757617627236,0.2888,4424.3,4424.1,3.2078]
[1757617627545,0.7169,4424.3,4424.2,0.5149]
[1757617627839,0.7169,4424.3,4424.2,0.73]
[1757617627840,0.4281,4424.3,4424.2,0.73]
[1757617634443,0.4281,4425.1,4425.0,0.8522]
[1757617634647,0.215,4425.1,4425.0,0.8522]
[1757617634941,0.229,4425.2,4425.0,0.542]
[1757617635147,0.444,4425.2,4425.1,0.73]
[1757617635345,0.2888,4425.1,4424.6,3.518]
[1757617635554,0.6571,4425.2,4424.6,0.4198]
[1757617635555,0.215,4424.7,4424.6,0.4198]
[1757617635740,0.215,4424.7,4424.6,0.73]
[1757617636351,0.7169,4425.1,4425.0,0.3269]
[1757617636650,0.7169,4425.1,4425.0,0.6371]
[1757617636847,0.4281,4425.1,4425.0,0.8522]
[1757617637350,0.7169,4425.1,4425.0,0.6371]
[1757617639151,0.7169,4425.1,4425.0,0.5149]
[1757617639352,0.7169,4425.1,4424.5,0.1222]
[1757617639353,3.6359,4425.1,4424.5,0.1222]
[1757617639553,0.4281,4424.6,4424.5,0.4324]
[1757617639744,0.4281,4424.6,4424.5,0.6371]
[1757617639745,0.6571,4424.6,4424.5,0.6371]
[1757617639946,0.6571,4424.6,4424.5,0.8522]
[1757617640246,0.6571,4424.6,4423.9,3.2078]
[1757617640450,0.7169,4424.2,4424.1,0.3102]
[1757617640654,0.7169,4424.2,4424.1,0.5149]
[1757617642144,0.7169,4424.2,4424.1,0.3102]
[1757617642350,0.7169,4424.2,4423.6,0.3102]
[1757617643251,0.4281,4424.2,4424.1,0.73]
[1757617643651,0.6571,4424.2,4424.1,0.73]
[1757617644549,0.444,4424.2,4424.1,0.73]
[1757617645445,0.6571,4424.2,4424.1,0.5149]
[1757617645647,0.9459,4424.2,4424.1,0.3102]
[1757617645846,0.9459,4424.2,4424.1,0.5149]
[1757617646150,0.6571,4424.2,4424.1,0.5149]
[1757617648355,0.9461,4424.2,4424.1,0.5149]
[1757617648757,0.9461,4424.2,4424.1,0.3102]
[1757617648960,0.9461,4424.2,4423.6,0.298]
[1757617650356,0.6571,4424.2,4423.4,3.2078]
[1757617650658,0.6952,4423.5,4423.4,0.4962]
[1757617650858,0.9242,4423.5,4423.4,0.4962]
[1757617651357,0.229,4423.5,4423.2,0.298]
[1757617651659,0.6952,4423.3,4423.2,0.4962]
[1757617653663,0.289,4423.2,4422.9,3.2078]
[1757617653857,0.6952,4423.0,4422.9,3.2078]
[1757617654560,0.7915,4423.0,4422.9,3.2078]
[1757617654863,0.6952,4423.0,4422.9,3.2078]
[1757617655063,0.6952,4423.0,4422.9,3.5058]
[1757617656754,0.6952,4423.0,4422.9,3.2078]
[1757617657154,0.289,4422.9,4422.5,0.1275]
[1757617657360,0.9242,4422.8,4422.7,0.298]
[1757617657864,0.9242,4422.8,4422.7,0.4962]
[1757617659459,0.9242,4422.8,4422.7,0.298]
[1757617659666,0.6952,4422.6,4422.5,0.298]
[1757617659854,0.6952,4422.6,4422.5,0.4962]
[1757617660252,0.4062,4422.6,4422.5,0.7105]
[1757617660462,0.4062,4422.6,4422.5,0.838]
[1757617662365,0.229,4422.8,4422.7,0.4125]
[1757617662571,0.4383,4422.8,4422.7,0.7105]
[1757617667158,0.229,4422.8,4422.7,0.7105]
[1757617667754,3.2078,4423.5,4423.0,0.1275]
[1757617667963,0.2093,4423.5,4423.4,0.7105]
[1757617668163,0.4373,4423.5,4423.4,0.7105]
[1757617669067,0.4373,4423.5,4423.4,0.4962]
[1757617669068,0.9232,4423.5,4423.4,0.4962]
[1757617669366,0.9232,4423.5,4423.4,0.298]
[1757617669568,4.131,4423.5,4423.4,0.298]
[1757617670064,4.71515904,4423.5,4423.1,0.298]
[1757617670263,4.131,4423.5,4422.6,0.298]
[1757617672069,4.131,4423.5,4423.4,0.4962]
[1757617672259,4.71548712,4423.5,4423.4,0.4962]
[1757617673970,4.71548712,4423.5,4423.0,0.298]
[1757617674273,0.2093,4422.7,4422.6,0.7105]
[1757617674566,0.4383,4422.7,4422.6,0.7105]
[1757617674773,0.229,4422.7,4422.6,0.7105]
[1757617676270,0.4383,4422.7,4422.6,0.7105]
[1757617676570,0.229,4422.7,4422.6,0.7105]
[1757617677678,0.4413,4422.7,4422.6,0.7105]
[1757617678876,0.6475,4422.7,4422.4,3.5073]
[1757617679180,0.7081,4422.5,4422.4,3.5073]
[1757617679982,0.4185,4422.2,4422.1,0.2008]
[1757617680179,0.9371,4422.2,4422.1,0.5003]
[1757617680591,0.6475,4422.2,4422.1,0.7137]
[1757617681376,0.9371,4422.2,4422.1,0.7137]
[1757617681882,0.9371,4422.2,4422.1,0.2995]
[1757617682179,0.9371,4422.2,4422.1,0.5003]
[1757617682785,0.6475,4422.2,4422.1,0.7137]
[1757617683087,3.2078,4422.4,4422.2,0.2995]
[1757617683378,3.2078,4422.4,4422.0,0.1269]
[1757617683379,3.2078,4422.4,4422.3,0.7137]
[1757617683574,3.4201,4422.4,4422.3,0.7137]
[1757617684179,3.6481,4422.4,4422.3,0.7137]
[1757617684884,3.2078,4422.4,4422.3,0.7137]
[1757617685086,3.4358,4422.4,4422.3,0.7137]
[1757617688081,3.2078,4422.9,4422.5,0.1269]
[1757617688286,0.81407863,4422.8,4422.7,0.7137]
[1757617688480,1.02637863,4422.8,4422.7,0.7137]
[1757617688877,1.52217863,4422.8,4422.7,0.7137]
[1757617689185,1.52217863,4422.8,4422.7,0.5003]
[1757617689384,1.23257863,4422.8,4422.7,0.7137]
[1757617691087,1.52217863,4422.8,4422.7,0.5003]
[1757617691785,1.52217863,4422.8,4422.7,0.2995]
[1757617692086,1.52217863,4422.8,4422.1,0.2995]
[1757617692380,0.58607863,4422.7,4422.1,0.4142]
[1757617692586,0.6465,4422.6,4422.5,0.6272]
[1757617693189,0.9361,4422.6,4422.5,0.6272]
[1757617694090,0.4185,4422.2,4422.0,0.1269]
[1757617694386,0.6465,4422.2,4422.1,0.7137]
[1757617695386,0.9361,4422.2,4422.1,0.7137]
[1757617695600,0.2896,4421.8,4421.7,3.2078]
[1757617695887,0.9361,4421.8,4421.7,3.2078]
[1757617696691,0.9361,4421.8,4421.7,3.5073]
[1757617697891,0.9361,4421.8,4421.7,3.7081]
[1757617698092,0.6465,4421.8,4421.7,3.9215]
[1757617698790,0.9361,4421.8,4421.7,3.9215]
[1757617699293,0.4403,4421.8,4421.7,3.9215]
[1757617702092,0.4403,4421.8,4421.7,0.7137]
[1757617702485,0.2896,4422.2,4421.7,0.7137]
[1757617702687,3.2078,4422.4,4422.0,0.8406]
[1757617702994,1.02573342,4422.3,4422.2,0.7137]
[1757617703391,1.23193342,4422.3,4422.2,0.7137]
[1757617705295,1.52153342,4422.3,4422.2,0.7137]
[1757617705797,1.52153342,4422.3,4422.2,0.2995]
[1757617705994,1.52153342,4422.3,4422.0,0.1269]
[1757617705995,1.52153342,4422.3,4421.6,0.2995]
[1757617706196,0.2123,4421.7,4421.6,0.7137]
[1757617706496,0.9361,4421.7,4421.6,0.7137]
[1757617707284,1.52183912,4421.7,4421.1,0.2995]
[1757617707483,0.6989,4421.2,4421.1,0.5184]
[1757617707689,0.2893,4421.1,4420.7,3.2078]
[1757617707994,0.4096,4420.9,4420.8,0.7304]
[1757617708586,1.2846378,4420.9,4420.8,0.3103]
[1757617708795,0.5857378,4420.9,4420.6,0.3103]
[1757617708989,0.2893,4420.6,4420.0,3.3347]
[1757617709193,0.4096,4420.1,4420.0,0.547]
[1757617709394,0.6166,4420.1,4420.0,0.547]
[1757617709695,0.6166,4420.1,4420.0,0.8573]
[1757617709696,0.9059,4420.1,4420.0,0.8573]
[1757617710896,0.6166,4420.1,4420.0,0.8573]
[1757617714301,0.9059,4420.1,4420.0,0.8573]
[1757617714999,0.6166,4420.1,4420.0,0.8573]
[1757617715899,0.9059,4420.1,4420.0,0.8573]
[1757617716207,0.9059,4420.1,4419.5,0.1269]
[1757617716208,0.2098,4419.6,4419.5,0.547]
[1757617716499,0.6376,4419.6,4419.5,0.547]
[1757617716695,0.6376,4419.6,4419.5,0.8573]
[1757617717292,0.9269,4419.6,4419.5,0.8573]
[1757617717999,0.6376,4419.6,4419.5,0.8573]
[1757617723113,0.9269,4419.6,4419.5,0.8573]
[1757617725310,0.6376,4419.6,4419.5,0.8573]
[1757617732517,0.6376,4419.6,4419.0,0.1282]
[1757617732518,0.2892,4419.5,4419.0,0.4385]
[1757617732820,0.6988,4419.1,4419.0,0.6466]
[1757617733019,0.9268,4419.1,4419.0,0.6466]
[1757617734023,0.6376,4419.1,4419.0,0.8586]
[1757617735425,1.2249947,4419.1,4419.0,0.8586]
[1757617736624,0.9969947,4419.1,4419.0,0.8586]
[1757617736931,1.2249947,4419.1,4419.0,0.8586]
[1757617740628,0.5873947,4419.1,4419.0,0.8586]
[1757617740827,0.228,4419.1,4419.0,4.8586]
[1757617741628,0.7063,4419.9,4419.5,0.3025]
[1757617741829,0.5117,4419.1,4419.0,0.8233]
[1757617742131,0.7397,4419.1,4419.0,0.8233]
[1757617742329,0.4436,4419.1,4419.0,0.8233]
[1757617742830,0.228,4419.1,4419.0,0.8233]
[1757617745015,0.4436,4419.1,4419.0,0.8233]
[1757617746323,0.9343,4419.1,4419.0,0.8233]
[1757617747329,0.228,4419.1,4419.0,0.8233]
[1757617749522,3.2078,4419.5,4419.0,0.5208]
[1757617749729,0.9343,4419.4,4419.3,0.6951]
[1757617752728,1.52151069,4419.4,4419.3,0.6951]
[1757617755334,1.03081069,4419.4,4419.3,0.6951]
[1757617755838,1.32691069,4419.4,4419.3,0.6951]
[1757617756033,0.58721069,4419.4,4419.3,0.6951]
[1757617756238,0.228,4419.5,4419.4,0.3025]
[1757617756534,0.228,4419.5,4419.4,0.6951]
[1757617765041,0.4436,4419.5,4419.4,0.6951]
[1757617765541,0.7397,4419.5,4419.4,0.6951]
[1757617765841,0.9343,4419.5,4419.4,0.6951]
[1757617766234,1.0611,4419.5,4419.1,0.3025]
[1757617766440,1.0611,4419.5,4419.0,0.1282]
[1757617766634,4.2689,4419.5,4419.0,0.1282]
[1757617766941,0.5117,4418.8,4418.7,0.6951]
[1757617767441,0.7063,4418.8,4418.7,0.6951]
[1757617768443,0.2156,4418.8,4418.7,0.6951]
[1757617769048,0.7291,4418.8,4418.7,0.6951]
[1757617769546,0.228,4419.0,4418.7,0.3926]
[1757617769747,1.10753672,4418.9,4418.8,0.7112]
[1757617770149,1.31083672,4418.9,4418.8,0.7112]
[1757617771249,0.7236,4418.9,4418.8,0.7112]
[1757617771846,0.2101,4418.9,4418.8,0.7112]
[1757617772045,0.228,4419.0,4418.8,0.4005]
[1757617772249,0.7483,4419.0,4418.9,0.7112]
[1757617772454,1.33541058,4419.0,4418.9,0.7112]
[1757617775655,1.53871058,4419.0,4418.9,0.7112]
[1757617778256,0.9516,4419.0,4418.9,0.7112]
[1757617778851,1.0795,4419.0,4418.7,0.3107]
[1757617779151,1.0795,4419.0,4418.5,0.1282]
[1757617779353,1.0795,4419.0,4418.6,0.3107]
[1757617779749,3.9771,4419.0,4418.2,0.3107]
[1757617779949,0.2101,4418.3,4418.2,0.7112]
[1757617780143,0.5203,4418.3,4418.2,0.7112]
[1757617780349,0.7236,4418.3,4418.2,0.7112]
[1757617780559,0.7236,4418.3,4418.2,0.5087]
[1757617780945,0.7236,4418.3,4418.2,0.198]
[1757617781150,0.7236,4418.3,4418.0,0.3107]
[1757617781352,0.7236,4418.2,4418.1,0.198]
[1757617781650,0.7236,4418.2,4418.1,0.5087]
[1757617782057,0.7236,4418.2,4418.1,0.198]
[1757617782250,0.3102,4418.1,4417.7,0.3107]
[1757617782449,0.5203,4417.7,4417.6,3.6083]
[1757617782656,0.7236,4417.7,4417.6,3.6083]
[1757617782858,0.7236,4417.7,4417.6,3.919]
[1757617790662,0.4381,4417.9,4417.8,0.4005]
[1757617790864,0.9516,4417.9,4417.8,0.7112]
[1757617791662,0.9516,4417.9,4417.8,0.5087]
[1757617791865,0.3102,4417.8,4417.6,3.5185]
[1757617792066,0.7236,4417.8,4417.7,0.5087]
[1757617792967,0.7236,4417.8,4417.7,0.7112]
[1757617797680,0.732,4417.8,4417.7,0.6866]
[1757617802480,0.732,4417.8,4417.0,3.3317]
[1757617802677,0.7286,4417.2,4417.1,0.2922]
[1757617802882,0.41,4416.7,4416.6,0.6866]
[1757617803076,0.638,4416.7,4416.6,0.6866]
[1757617803279,0.9566,4416.7,4416.6,0.6866]
[1757617803784,0.9566,4416.7,4416.6,0.4919]
[1757617804085,0.9566,4416.7,4416.6,0.9972778]
[1757617805283,0.1237,4417.0,4416.7,0.2922]
[1757617805477,0.1237,4417.0,4416.6,0.3106778]
[1757617805478,0.7286,4417.0,4416.9,0.6866]
[1757617805688,1.0803,4417.0,4416.9,0.5103778]
[1757617805988,1.0803,4417.0,4416.9,0.3106778]
[1757617806579,1.0803,4417.0,4416.9,0.8025778]
[1757617807786,1.0803,4417.0,4416.9,0.3106778]
[1757617807987,1.0803,4417.0,4416.9,0.5103778]
[1757617808180,1.0803,4417.0,4416.9,0.8025778]
[1757617814394,1.0803,4417.0,4416.9,0.3106778]
[1757617817392,1.0803,4417.0,4416.9,0.5103778]
[1757617817594,1.0803,4417.0,4416.9,0.3106778]
[1757617820395,4.2881,4417.0,4416.9,0.3106778]
[1757617823394,4.87475169,4417.0,4416.9,0.3106778]
[1757617823995,4.64675169,4417.0,4416.9,0.8025778]
[1757617824197,0.9566,4417.0,4416.9,0.9972778]
[1757617824894,0.1985,4417.0,4416.9,0.9972778]
[1757617825102,0.3186,4417.5,4417.4,0.6866]
[1757617825289,0.5466,4417.5,4417.4,0.9972778]
[1757617825598,0.228,4417.5,4417.4,0.9972778]
[1757617825794,0.9566,4417.5,4417.4,0.9972778]
[1757617827005,0.228,4417.5,4417.4,0.9972778]
[1757617827505,0.228,4417.5,4417.4,4.9972778]
[1757617827999,3.5262,4419.0,4418.9,0.7157]
[1757617828299,3.5262,4419.0,4418.9,1.0263778]
[1757617828300,4.51150526,4419.0,4418.9,1.0263778]
[1757617828700,4.73950526,4419.0,4418.9,1.0263778]
[1757617829003,4.86280526,4419.0,4418.9,1.0263778]
[1757617832306,4.2757,4419.0,4418.9,1.0263778]
[1757617832501,4.2757,4419.0,4418.9,0.3106778]
[1757617832708,8.86162294,4419.0,4418.1,0.3028]
[1757617832903,0.98412294,4418.9,4418.8,0.1983]
[1757617833099,1.30252294,4418.9,4418.8,0.7157]
[1757617833805,1.30252294,4418.9,4418.1,0.3028]
[1757617834008,0.7166,4418.9,4418.1,0.3028]
[1757617834703,0.7166,4418.9,4417.7,3.2078]
[1757617834704,0.7166,4417.8,4417.7,3.9235]
[1757617834902,0.9446,4417.8,4417.7,0.7157]
[1757617835509,0.228,4417.8,4417.7,0.7157]
[1757617840205,0.9446,4417.8,4417.7,0.7157]
[1757617840399,0.3184,4417.7,4417.3,0.3028]
[1757617840605,0.7166,4417.4,4417.3,0.7157]
[1757617840911,0.516,4417.4,4417.3,0.7157]
[1757617841511,0.1976,4417.4,4417.3,0.7157]
[1757617841704,0.1233,4418.0,4417.5,0.126]
[1757617841916,0.3982,4418.0,4417.9,0.7157]
[1757617842110,0.6262,4418.0,4417.9,0.7157]
[1757617842516,1.0679,4418.0,4417.9,0.7157]
[1757617845320,0.9446,4418.0,4417.9,0.7157]
[1757617846414,0.4256,4418.0,4417.9,0.7157]
[1757617846806,0.744,4418.0,4417.9,0.7157]
[1757617847008,0.9446,4418.0,4417.9,0.7157]
[1757617849108,0.516,4417.3,4417.2,0.4129]
[1757617849314,0.7166,4417.3,4417.2,0.4129]
[1757617849719,0.7166,4417.3,4417.2,0.7157]
[1757617849921,0.7166,4417.3,4417.2,0.5011]
[1757617850108,0.7166,4417.3,4417.2,0.1983]
[1757617854313,0.3982,4417.1,4417.0,0.5011]
[1757617854520,0.7166,4417.1,4417.0,0.5011]
[1757617854709,0.7166,4417.1,4417.0,0.7157]
[1757617855910,0.7166,4417.1,4417.0,0.8417]
[1757617857119,0.4256,4417.4,4417.3,0.4129]
[1757617857313,0.6262,4417.4,4417.3,0.7157]
[1757617857719,0.9214,4417.4,4417.3,0.7157]
[1757617857914,0.4256,4417.4,4417.3,0.7157]
[1757617858416,0.7208,4417.4,4417.3,0.7157]
[1757617858809,0.9268,4417.4,4417.3,0.7157]
[1757617859310,0.4256,4417.4,4417.3,0.7157]
[1757617859519,0.228,4417.4,4417.3,0.7157]
[1757617860019,0.432,4417.4,4417.3,0.7157]
[1757617860221,0.7272,4417.4,4417.3,0.7157]
[1757617860720,0.432,4417.4,4417.3,0.7157]
[1757617865316,0.9332,4417.4,4417.3,0.7157]
[1757617865516,0.7052,4417.1,4417.0,0.5152]
[1757617865718,0.7052,4417.1,4417.0,0.7107]
[1757617867325,0.7052,4416.7,4416.6,0.7107]
[1757617870725,0.7052,4417.3,4417.2,0.1978]
[1757617870925,1.29220694,4417.3,4417.2,0.5152]
[1757617872332,1.29220694,4417.3,4417.2,0.7107]
[1757617872641,0.7052,4417.3,4417.2,0.7107]
[1757617872840,1.29226483,4417.3,4417.2,0.7107]
[1757617874734,1.29226483,4417.3,4416.6,0.3174]
[1757617874934,0.7052,4416.7,4416.6,0.7107]
[1757617876439,1.29237707,4416.7,4416.6,0.7107]
[1757617878241,0.7052,4416.7,4416.6,0.7107]
[1757617880442,0.7052,4416.7,4416.4,3.2078]
[1757617880644,0.3487,4417.0,4416.5,0.5152]
[1757617880645,0.7052,4416.6,4416.5,0.5152]
[1757617881545,0.7052,4416.6,4416.5,0.7107]
[1757617882143,0.7052,4416.6,4416.5,0.831]
[1757617882446,0.7052,4416.6,4416.5,0.7107]
[1757617883734,0.2952,4416.9,4416.5,0.5136]
[1757617883935,0.9332,4417.0,4416.9,0.3933]
[1757617884147,1.52042252,4417.0,4416.9,0.7107]
[1757617885345,1.64112252,4417.0,4416.9,0.7107]
[1757617886146,1.64112252,4417.0,4416.6,0.3174]
[1757617886335,0.41,4416.6,4416.5,0.5136]
[1757617886645,0.7052,4416.6,4416.5,0.3933]
[1757617886938,0.7052,4416.6,4416.5,0.7107]
[1757617890439,0.3072,4416.9,4416.6,0.3179]
[1757617890640,0.5201,4416.9,4416.8,0.7341]
[1757617890845,3.3285,4417.5,4416.8,0.4162]
[1757617891035,1.53678264,4417.4,4417.3,0.7341]
[1757617891846,1.53678264,4417.4,4416.6,0.3179]
[1757617892044,1.30878264,4417.3,4417.2,0.5231]
[1757617893651,1.30878264,4417.3,4416.6,0.3179]
[1757617893950,0.5201,4416.7,4416.6,0.7341]
[1757617896747,0.2129,4416.7,4416.6,0.7341]
[1757617896942,0.3072,4417.3,4416.7,0.3179]
[1757617897149,1.3089141,4417.2,4417.1,0.7341]
[1757617897639,0.8003141,4417.2,4417.1,0.7341]
[1757617897846,1.3089141,4417.2,4417.1,0.7341]
[1757617898948,1.3089141,4417.2,4417.1,0.5231]
[1757617901150,1.3089141,4417.2,4416.4,3.9419]
[1757617901151,0.7215,4416.5,4416.4,3.9419]
[1757617901350,0.5201,4416.7,4416.6,0.4162]
[1757617901550,0.5201,4416.7,4416.6,0.7341]
[1757617903352,0.2129,4416.7,4416.6,0.7341]
[1757617903554,4.05,4417.5,4417.4,0.5231]
[1757617903749,4.86463586,4417.5,4417.4,0.5231]
[1757617904054,4.86463586,4417.5,4416.6,0.3179]
[1757617904251,0.7215,4417.3,4417.2,0.2052]
[1757617904452,1.30813586,4417.3,4417.2,0.5231]
[1757617908163,1.30813586,4417.3,4416.6,0.3179]
[1757617908363,0.4143,4416.7,4416.6,0.7341]
[1757617908657,0.7215,4416.7,4416.6,0.7341]
[1757617908856,1.30813586,4416.7,4416.6,0.7341]
[1757617910361,0.79953586,4416.7,4416.6,0.7341]
[1757617910662,1.10673586,4416.7,4416.6,0.7341]
[1757617911561,1.30813586,4416.7,4416.6,0.7341]
[1757617913365,0.58663586,4416.7,4416.6,0.7341]
[1757617913552,0.58663586,4416.8,4416.6,0.4162]
[1757617913864,1.30813586,4416.8,4416.7,0.7341]
[1757617914161,1.30813586,4416.8,4416.7,0.5231]
[1757617914362,0.3072,4416.7,4416.5,0.3179]
[1757617914558,0.7215,4416.6,4416.5,0.5231]
[1757617914764,0.7215,4416.6,4416.5,0.7341]
[1757617916058,0.228,4416.9,4416.5,0.5351]
[1757617916250,0.58696974,4416.8,4416.7,0.7341]
[1757617917064,1.10706974,4416.8,4416.7,0.7341]
[1757617918265,0.5201,4416.8,4416.7,0.7341]
[1757617918965,0.4143,4416.8,4416.5,0.2979]
[1757617919167,0.7161,4416.5,4416.4,3.9118]
[1757617919558,0.5059,4416.8,4416.7,0.4061]
[1757617919757,0.7161,4416.8,4416.7,0.704]
[1757617920061,0.228,4416.9,4416.5,0.5094]
[1757617920062,0.4059,4416.6,4416.5,0.5094]
[1757617920366,0.7161,4416.6,4416.5,0.5094]
[1757617921362,0.7161,4416.6,4416.5,0.704]
[1757617923461,0.7161,4416.6,4416.5,0.8254]
[1757617923662,0.3102,4417.4,4416.9,0.2979]
[1757617923971,0.9441,4417.2,4417.1,0.5094]
[1757617924171,1.53113515,4417.2,4416.6,0.2979]
[1757617924361,0.1957,4416.7,4416.6,0.704]
[1757617924660,0.5059,4416.7,4416.6,0.704]
[1757617925668,0.7161,4416.7,4416.6,0.704]
[1757617930668,3.3285,4417.5,4416.6,0.704]
[1757617930868,1.53117595,4417.4,4417.3,0.704]
[1757617932771,1.53117595,4417.4,4417.3,0.5094]
[1757617933371,1.53117595,4417.4,4417.3,0.704]
[1757617935272,0.9441,4417.4,4417.3,0.704]
[1757617936474,0.9441,4417.4,4417.3,0.2115]